Cogmind - Beta 17 @@@ ROGUE MODE // 2026.07.01 @ 08:08:42 Player: Scared Dad Result: Self-destructed Performance ------------- Evolutions (3) 1500 Regions Visited (4) 800 Robots Destroyed (15) 75 Value Destroyed (405) 405 Prototype IDs (3) 60 Alien Tech Used (0) 0 Bonus (200) 200 TOTAL SCORE: 3040 Bonus ------- Pacifist 200 Cogmind --------- Core Integrity 581/700 Matter 261/300 Energy 160/160 System Corruption 2% Temperature Cool (0) Movement Treading (170) Location -7/Factory Parts ------- > --- POWER (2) -------- Light Nuclear Core > --- PROPULSION (4) --- Armored Treads Armored Treads Armored Treads > --- UTILITY (5) ------ Small Storage Unit Visual Processing Unit Improved Signal Interpreter Targeting Computer Advanced Targeting Computer > --- WEAPON (2) ------- Minigun > --- INVENTORY (8) ---- Improved Heat Sink Weight Redist. System Target Analyzer Heavy Assault Rifle Heavy Assault Rifle Heavy Assault Rifle Heavy Assault Rifle Peak State ------------ > --- POWER ------------ Light Nuclear Core > --- PROPULSION ------- Armored Treads Armored Treads Armored Treads Armored Treads > --- UTILITY ---------- Small Storage Unit Visual Processing Unit Improved Signal Interpreter Targeting Computer Advanced Targeting Computer > --- WEAPON ----------- Heavy Assault Rifle Minigun > --- INVENTORY -------- Improved Heat Sink Weight Redist. System Heavy Assault Rifle Heavy Assault Rifle Heavy Assault Rifle Heavy Assault Rifle [Rating: 31] Favorites ----------- Power Light Ion Engine Engine Light Ion Engine Power Core Light Nuclear Core Propulsion Armored Treads Treads Armored Treads Wheel Wheel Flight Unit Improved Flight Unit Utility Small Storage Unit Device Sensor Array Storage Small Storage Unit Processor Visual Processing Unit Protection Hardened Light Armor Plating Weapon Assault Rifle Ballistic Gun Assault Rifle Build | -11 -10 -9 -8 -7 ------- Run | Yrd Mat Mat Mat Fac Slots Evolved 6 | . . 2 2 2 Power 1 | . . . . 1 Propulsion 2 | . . 1 1 . Utility 3 | . . 1 1 1 Weapon . | . . . . . Parts Attached 40 | 6 5 6 9 14 Power 6 | 1 . 2 1 2 Engine 5 | 1 . 2 1 1 Core 1 | . . . . 1 Reactor . | . . . . . Propulsion 14 | 2 3 1 4 4 Treads 4 | . . . . 4 Leg . | . . . . . Wheel 2 | 2 . . . . Hover . | . . . . . Flight 8 | . 3 1 4 . Utility 13 | 1 2 3 4 3 Device 3 | . 2 . . 1 Storage 1 | 1 . . . . Processor 5 | . . 2 1 2 Hackware . | . . . . . Protection 4 | . . 1 3 . Artifact . | . . . . . Weapon 7 | 2 . . . 5 Energy Gun . | . . . . . Energy Cannon . | . . . . . Ballistic Gun 7 | 2 . . . 5 Ballistic Cannon . | . . . . . Launcher . | . . . . . Special Weapon . | . . . . . Impact Weapon . | . . . . . Slashing Weapon . | . . . . . Piercing Weapon . | . . . . . Special Melee Weapon . | . . . . . Unidentified Prototypes 1 | . 1 . . . Parts Lost 11 | . . 2 3 6 Power 4 | . . 1 1 2 Propulsion 4 | . . . 1 3 Utility 1 | . . 1 . . Weapon 2 | . . . 1 1 Highest Loss Streak 3 | . . 1 2 3 To Critical Strikes . | . . . . . Average Backups 6 | 4 6 5 7 5 Power . | . 1 . . . Propulsion 2 | 2 4 2 4 1 Utility 1 | . . . 2 1 Weapon 1 | . . 1 . 2 Tool/Special . | . . . . . Unused Backups 10 | . 3 . 2 5 Power . | . . . . . Propulsion 6 | . 2 . 2 2 Utility 1 | . . . . 1 Weapon 3 | . 1 . . 2 Tool/Special . | . . . . . Average Slot Usage (%) 87 | . 88 83 91 87 Engine 8 | . 14 11 9 4 Treads 10 | . . . . 25 Wheel 3 | . 23 . . . Flight 17 | . 5 33 35 4 Device 3 | . 7 6 . 2 Storage 9 | . 14 11 9 7 Processor 17 | . . 10 17 27 Protection 2 | . . 3 8 . Ballistic Gun 12 | . 24 7 11 12 Peak Build Rating 31 | 6 11 16 20 31 Average Rating 18 | 3 7 14 17 27 On Entrance 9 | . 6 10 15 14 Avg Prop Armor Cover (%) 34 | . . . . 34 Naked Turns . | . . . . . Heaviest Build 17 | 12 13 15 17 16 Greatest Support 86 | 20 20 15 20 86 Greatest Overweight (x) 3 | . . . . 3 Average Overweight (x) . | . . . . . Largest Inventory Capacity 8 | 8 8 8 8 8 Average Capacity 7 | 7 8 8 8 8 Most Carried 8 | 8 8 8 8 8 Average Carried 6 | 4 6 5 7 5 Final Capacity 8 | 8 8 8 8 8 Final Carried 8 | 6 8 8 6 7 Class Distribution -------------------- 77% | Mutant 15% | Sprinter 7% | Scavenger-Sprinter Dominant Class ---------------- Mutant | -10/Materials Mutant | -9/Materials Sprinter | -8/Materials Mutant | -7/Factory Resources | -11 -10 -9 -8 -7 ----------- Run | Yrd Mat Mat Mat Fac Matter Collected 825 | 181 129 160 11 344 Remotely . | . . . . . Salvage Created 513 | . . 150 . 363 Parts 35 | . . 18 . 17 Haulers Intercepted . | . . . . . Recyclers Shooed 1 | . . . . 1 Parts Field Recycled . | . . . . . Retrieved Matter . | . . . . . Parts Self-Destructed . | . . . . . Prevented . | . . . . . Parts Restored . | . . . . . Kills | -11 -10 -9 -8 -7 ------- Run | Yrd Mat Mat Mat Fac Combat Hostiles Destroyed 14 | . . 8 . 6 Guns 14 | . . 8 . 6 Classes Destroyed 4 | . . 2 . 2 Recycler 1 | . . . . 1 Swarmer 7 | . . 7 . . Grunt 6 | . . 1 . 5 Programmer 1 | . . . . 1 Best Kill Streak 7 | . . 7 . 4 Combat Bots Only 7 | . . 7 . 3 Max Kills in Single Turn 2 | . . 2 . 1 Gunslinging 1 | . . 1 . . Exploded . | . . . . . Melee . | . . . . . Uniques/NPCs Destroyed . | . . . . . Combat | -11 -10 -9 -8 -7 -------- Run | Yrd Mat Mat Mat Fac Hostile Shots Fired 262 | . . 83 76 103 Missed 112 | . . 37 46 29 Hits 150 | . . 46 30 74 Melee 9 | . . . 6 3 Projectile 141 | . . 46 24 71 Critical Strikes 8 | . . . 5 3 Damage Taken 2413 | . . 551 616 1246 Core 343 | . . 127 97 119 Absorbed by Shields . | . . . . . Core Remaining (%) 87 | 100 100 68 82 . Volleys Fired 42 | . . 15 . 27 Largest 2 | . . 2 . 2 Hottest 48 | . . 40 . 48 Shots Fired 84 | . . 30 . 54 Gun 84 | . . 30 . 54 Cannon . | . . . . . Launcher . | . . . . . Special . | . . . . . Kinetic 84 | . . 30 . 54 Thermal . | . . . . . Explosive . | . . . . . Electromagnetic . | . . . . . Robot Hit Streak 22 | . . 21 . 22 Robot Miss Streak 2 | . . 1 . 2 Penetration Max . | . . . . . Secondary Targets 7 | . . 4 . 3 Max Gunslinging Chain 1 | . . 1 . 1 Shots Hit Robots 69 | . . 27 . 42 Core Hits 29 | . . 12 . 17 Critical Kills 1 | . . . . 1 Critical Parts Destroyed . | . . . . . Critical Strikes 1 | . . . . 1 Destroy 1 | . . . . 1 Melee Attacks . | . . . . . Impact . | . . . . . Slashing . | . . . . . Piercing . | . . . . . Sneak Attacks . | . . . . . Combat Hostiles . | . . . . . Follow-up Attacks . | . . . . . Damage Inflicted 1073 | . . 345 . 728 Guns 1073 | . . 345 . 728 Cannons . | . . . . . Explosions . | . . . . . Melee . | . . . . . Ramming . | . . . . . Kinetic 1073 | . . 345 . 728 Thermal . | . . . . . Explosive . | . . . . . Electromagnetic . | . . . . . Impact . | . . . . . Slashing . | . . . . . Piercing . | . . . . . Highest Corruption 2 | . . . 2 2 Average Corruption 1 | . . . 1 1 Corruption Purged . | . . . . . Corruption Blocked . | . . . . . Effects 1 | . . . 1 . Parts Rejected 1 | . . . 1 . Overload Shots . | . . . . . Overflow Damage . | . . . . . Projectiles . | . . . . . Explosions . | . . . . . Melee . | . . . . . Knockbacks . | . . . . . Impact . | . . . . . Kinetic . | . . . . . Secondary . | . . . . . Self-Inflicted Damage . | . . . . . Shots . | . . . . . Rammed . | . . . . . Targets Rammed . | . . . . . Kicked . | . . . . . Crushed . | . . . . . Highest Temperature 29 | . . 20 29 9 Average Temperature 8 | . . 7 10 5 Received Heat Transfer 885 | . . 219 189 477 Siege Activations . | . . . . . Martial Activations . | . . . . . Shielding Activations . | . . . . . Robots Disrupted . | . . . . . Combat Hostiles . | . . . . . Robots Corrupted . | . . . . . Combat Hostiles . | . . . . . Parts Fried . | . . . . . Impact Corruptions . | . . . . . Robots Melted . | . . . . . Combat Hostiles . | . . . . . Parts Melted . | . . . . . Heat Transferred . | . . . . . Parts Sabotaged . | . . . . . Parts Stolen . | . . . . . Parts Stripped . | . . . . . Power Chain Reactions . | . . . . . Alert | -11 -10 -9 -8 -7 ------- Run | Yrd Mat Mat Mat Fac Maximum Alert Level 1 | . . 1 1 . Low Security (%) 89 | 100 100 64 86 100 Level 1 10 | . . 35 13 . Level 2 . | . . . . . Level 3 . | . . . . . Level 4 . | . . . . . Level 5 . | . . . . . High Security . | . . . . . Max Security . | . . . . . Peak Influence 369 | . . 369 223 98 Initial 146 | . . . 146 98 Average 79 | . . 148 142 46 Influence Increases 781 | . . 429 192 160 Destroy 0b10 Robot/C 280 | . . 160 . 120 Destroy 0b10 Robot/NC 5 | . . . . 5 Destroy Leader 40 | . . 20 . 20 Successful Hack 36 | . . 24 12 . Partial Spotted 45 | . . 30 15 . Lose Combat Pursuer 375 | . . 195 165 15 Influence Decreases 773 | . . 80 323 370 Entered New Map 323 | . . . 203 120 Time Decay 340 | . . 60 90 190 Lost Part 110 | . . 20 30 60 Squads Dispatched 8 | . 1 1 4 2 Investigation 2 | . . 1 1 . Extermination 1 | . . . . 1 Reinforcement 5 | . 1 . 3 1 Assault . | . . . . . Garrison . | . . . . . Intercept . | . . . . . Searches Triggered . | . . . . . Construction Impeded . | . . . . . Haulers Reinforced . | . . . . . Active Scanning Responses . | . . . . . Cargo Convoy Interrupts . | . . . . . Stealth | -11 -10 -9 -8 -7 --------- Run | Yrd Mat Mat Mat Fac Distress Signals 8 | . 1 4 3 . Communications Jammed . | . . . . . Distress Signals . | . . . . . Times Spotted 69 | . 1 26 29 13 Peak Tracking Total 17 | . 1 17 13 4 Tactical Retreats 8 | . . 3 4 1 Traps | -11 -10 -9 -8 -7 ------- Run | Yrd Mat Mat Mat Fac Traps Triggered 3 | . . . 3 . Indirectly . | . . . . . Trap Hack Attempts . | . . . . . Triggered . | . . . . . Disarmed . | . . . . . Reprogrammed . | . . . . . Reused . | . . . . . Traps Extracted . | . . . . . Installed . | . . . . . Triggered . | . . . . . Machines | -11 -10 -9 -8 -7 ---------- Run | Yrd Mat Mat Mat Fac Machines Disabled . | . . . . . Max in Single Turn . | . . . . . Garrison Access 1 | . . . . 1 Machines Repaired . | . . . . . Machines Dismantled . | . . . . . Machines Sabotaged . | . . . . . Overloaded Fab Kills . | . . . . . Hacking | -11 -10 -9 -8 -7 --------- Run | Yrd Mat Mat Mat Fac Machines Accessed 15 | . 1 6 7 1 Terminals 10 | . 1 3 6 . Fabricators . | . . . . . Repair Stations . | . . . . . Recycling Units 1 | . . 1 . . Scanalyzers 3 | . . 2 1 . Garrison Access 1 | . . . . 1 Total Hacks 34 | . 3 14 16 1 Successful 16 | . . 8 7 1 Failed 18 | . 3 6 9 . Catastrophic 5 | . 1 . 4 . Database Lockouts . | . . . . . Manual . | . . . . . Terminals 25 | . 3 8 14 . Fabricators . | . . . . . Repair Stations . | . . . . . Recycling Units 1 | . . 1 . . Scanalyzers 7 | . . 5 2 . Garrison Access 1 | . . . . 1 Terminal Hacks 9 | . . 4 5 . Prototype ID Bank 1 | . . . 1 . Branch Access Points 1 | . . 1 . . Emergency Access Points 2 | . . 1 1 . Locate Traps 2 | . . 1 1 . Recall Reinforcements 1 | . . 1 . . Zone Layout 2 | . . . 2 . Fabricator Hacks . | . . . . . Repair Station Hacks . | . . . . . Recycling Unit Hacks 1 | . . 1 . . Report Inventory 1 | . . 1 . . Scanalyzer 5 | . . 3 2 . Retrieve Study 5 | . . 3 2 . Garrison Access Hacks 1 | . . . . 1 Seal Access 1 | . . . . 1 Unauthorized Hacks . | . . . . . Terminals . | . . . . . Fabricators . | . . . . . Repair Stations . | . . . . . Recycling Units . | . . . . . Scanalyzers . | . . . . . Garrison Access . | . . . . . Data Cores Recovered . | . . . . . Used . | . . . . . Hacking Detections 13 | . 1 5 7 . Full Trace Events 4 | . 1 2 1 . Feedback Events . | . . . . . Feedback Blocked . | . . . . . Robot Schematics Acquired . | . . . . . Robots Built . | . . . . . Authchips . | . . . . . Time . | . . . . . Total Robot Build Rating . | . . . . . Part Schematics Acquired . | . . . . . Parts Built . | . . . . . Authchips . | . . . . . Time . | . . . . . Total Part Build Rating . | . . . . . Part Studies Acquired 5 | . . 3 2 . Parts Repaired . | . . . . . Time . | . . . . . Parts Recycled . | . . . . . Recycled Matter . | . . . . . Retrieved Matter . | . . . . . Retrieved Components . | . . . . . Parts Scanalyzed . | . . . . . Part Schematics Acquired . | . . . . . Parts Damaged . | . . . . . Bothacking | -11 -10 -9 -8 -7 ------------ Run | Yrd Mat Mat Mat Fac Used RIF Installer . | . . . . . Robots Hacked . | . . . . . Non-combat . | . . . . . Combat . | . . . . . Robot Hacks Applied . | . . . . . Relay Couplers Released . | . . . . . Fabnet Peak Effective % . | . . . . . Robots Rewired . | . . . . . Allies Hacked . | . . . . . Hacks Repelled . | . . . . . Allies | -11 -10 -9 -8 -7 -------- Run | Yrd Mat Mat Mat Fac Total Allies . | . . . . . Largest Group . | . . . . . Highest-Rated Group . | . . . . . Highest-Rated Ally . | . . . . . Total Orders . | . . . . . Ally Attacks . | . . . . . Total Damage . | . . . . . Kills . | . . . . . Allies Corrupted . | . . . . . Allies Melted . | . . . . . Intel | -11 -10 -9 -8 -7 ------- Run | Yrd Mat Mat Mat Fac Active Infowar (turns) 746 | . 71 129 193 353 Optics 667 | . . 121 193 353 Sensors 200 | . 71 129 . . Robot Analysis Total . | . . . . . Derelict Logs Recovered . | . . . . . Drone Launches . | . . . . . Drone Recoveries . | . . . . . Exploration | -11 -10 -9 -8 -7 ------------- Run | Yrd Mat Mat Mat Fac Turns Passed 984 | 56 128 215 194 391 Spaces Moved 1322 | 50 159 392 493 228 Core 16 | 11 . . . 5 Treads 123 | . . . . 123 Legs . | . . . . . Wheels 153 | 39 114 . . . Hover . | . . . . . Flight 1030 | . 45 392 493 100 Fastest Speed 31 | 50 37 34 31 31 Average Speed 51 | 73 67 34 31 109 Slowest Speed 200 | 80 80 34 34 200 Overloaded Moves . | . . . . . Propulsion Burnouts . | . . . . . Robots Hopped 36 | . . 12 20 4 Potential Cave-ins . | . . . . . Cave-ins Triggered . | . . . . . Exploration Rate (%) 32 | 3 37 57 59 7 Regions Visited 4 Branch Regions . Pre-discovered Areas . | . . . . . Known Exits Taken . | . . . . . Unknown Exits Taken 4 | 1 1 1 1 . Scrap Searched . | . . . . . Spaces Dug . | . . . . . Terrain Destroyed . | . . . . . Melee . | . . . . . Projectile . | . . . . . AOE . | . . . . . Terrain Rammed . | . . . . . Walls Destroyed . | . . . . . Machines Disabled . | . . . . . Actions | -11 -10 -9 -8 -7 --------- Run | Yrd Mat Mat Mat Fac Total 1514 | 69 182 432 514 317 Wait 65 | 2 . 20 13 30 Move 1251 | 49 158 370 454 220 Hop 31 | . . 9 18 4 Pick Up 53 | 12 9 7 10 15 Fast Attach . | . . . . . Attach 35 | 6 3 7 8 11 Detach 5 | . 2 1 1 1 Swap 10 | . 2 1 4 3 Drop 22 | . 8 2 6 6 Fire 42 | . . 15 . 27 Melee . | . . . . . Ram . | . . . . . Kick . | . . . . . Crush . | . . . . . Escape Stasis . | . . . . . Rewire . | . . . . . Trap . | . . . . . Miscellaneous . | . . . . . Route ------- -11/Scrapyard -10/Materials -9/Materials (discovered 2 exits: *Mat / Min) -8/Materials -7/Factory (discovered 1 exit: [*Low]) History --------- Turn | Location | Event 18 | -11/Scrapyard | Discovered new exit (range 15) 57 | -11/Scrapyard | Entered Materials 118 | -10/Materials | Met 8R-AWN 150 | -10/Materials | Discovered new exit (range 16) 185 | -10/Materials | Entered another Materials area 185 | -9/Materials | Evolved 2 slots: Propulsion x1, Utility x1 302 | -9/Materials | Build established: Mutant 348 | -9/Materials | Destroyed 7 combat bots 369 | -9/Materials | Identified exit to Mines 391 | -9/Materials | Discovered new exit (range 15) 400 | -9/Materials | Entered another Materials area 400 | -8/Materials | Evolved 2 slots: Propulsion x1, Utility x1 581 | -8/Materials | Discovered new exit (range 18) 594 | -8/Materials | Entered Factory 594 | -7/Factory | Evolved 2 slots: Power x1, Utility x1 679 | -7/Factory | Lost 3 parts (1p2n) 689 | -7/Factory | Discovered new exit (range 13) 985 | -7/Factory | Self-destructed Last Messages --------------- 9N. 00887_ G-47 Trooper suffers critical hit (Destroy). 00887_ G-47 Trooper destroyed. 00891_ Acquired 49 matter. 00916_ Lgt. Ion Engine+ destroyed. 00924_ P-60 Hacker destroyed. 00924_ Switching to secondary target: G-47 Trooper. 00927_ G-47 Trooper destroyed. 00932_ Acquired Lgt. Nuclear Core. 00939_ Acquired 42 matter. 00942_ Acquired Target Analyzer. 00948_ Acquired 40 matter. 00978_ Arm. Treads destroyed. 00979_ Chain reaction triggered in Imp. Deuterium Engine. 00979_ P-60 Hacker destroyed. 00979_ G-47 Trooper destroyed. 00984_ Hvy. Assault Rifle destroyed. Map ----- +----------------------------------------------------+ | # """ #?????# # #????? | | + #?????# ^ #####+########????? | | # """ #?????# ^ #? | | # """ ####### ^ ^ #####+########????? | | # """ + ! """ #??? ????????????? | | # # !^ """ ##??? ????????????? | | ####+##### ! """ #???? ????????????? | | #??? ?????????????? | | [ #??? ?????????????? | | [ #??? ?????????????? | | #####+#### [?????????????? | | # # ?????????????? | | #############+##### # """ # ????????????? | | ?????# # # """ # ?????????????? | | ?????# # # """ + ??????????????? | | ?????# # # "" #???????????????? | | ?????# # # """ """#???????????????? | | ?????# # # """ R"#??????????????? | | ?????# # # """ """#?????????????? | | ?????# # # =% #????????????? | | ?????# # ###+################### | | ?????# # [ [ | | ?????# # |%! = | | ?????# # * | | ?????# # l | | ?????############## =%@ | | ??????????????????# g!;;####################### | | ??????????????????# ####?????????????????????? | | ??????????????????# ?????????????????????????? | | ??????????????????# ??????????????????????????? | | ??????????????????# ???????????????????????????? | | ??????????????????# ???????????????????????????? | | ??????????????????# ????????????????????????????? | | ??????????????????# ????????????????????????????? | | ??????????????????# ?????????????????????????????? | | ??????????????????# ?????????????????????????????? | | ??????????????????/??????????????????????????????? | | ??????????????????#??????????????????????????????? | | ?????????????????????????????????????????????????? | | ?????????????????????????????????????????????????? | | ?????????????????????????????????????????????????? | | ?????????????????????????????????????????????????? | | ?????????????????????????????????????????????????? | | ?????????????????????????????????????????????????? | | ?????????????????????????????????????????????????? | | ?????????????????????????????????????????????????? | | ?????????????????????????????????????????????????? | | ?????????????????????????????????????????????????? | | ?????????????????????????????????????????????????? | | ?????????????????????????????????????????????????? | +----------------------------------------------------+ Best States ------------- Heat Dissipation 34 Energy Generation 15 Energy Capacity 160 Matter Stores 300 Matter Capacity 300 Sight Range 18 Robot Scan Range 14 Terrain Scan Density 10 Additional Mass Support 6 Armor Coverage 150 Evasion (%) 63 Targeting Accuracy 13 Recoil Reduction 4 Item Schematics ----------------- None Robot Schematics ------------------ None Fabricated ------------ Nothing Repaired ---------- Nothing Studied --------- Assault Rifle | -9/Materials | Hacked Lgt. Ion Engine | -9/Materials | Hacked Lgt. Treads | -9/Materials | Hacked Flight Unit | -8/Materials | Hacked Lgt. Deuterium Engine | -8/Materials | Hacked Alien Tech Used ----------------- None Achievements -------------- Follow The Leader Challenges ------------ None Game ------ Seed CoreChromionBlaster Manual? 0 Play Time 00:23:59 Cumulative 116.4 hours Start 2026.07.01 @ 07:49:11 End 2026.07.01 @ 08:08:42 Sessions 1 Manual Loads 0 Difficulty Rogue Special Mode None Game No. 142 Rogue 142 Adventurer 0 Explorer 0 Win Type - Total 0 Types 0/0/0/0/0/0/0/0/0/0 Lore% 49 Gallery% 46 Achievement% 32 Wizard Run 0 Options --------- Layout 2 ASCII 0 Keyboard 0 Movement Mouse Keybinds 0 Fullscreen 1 Font 24/Smallcaps Map View 50x44 Zoom Use 0% Tactical HUD 1 Map Filters NONE Filters NONE Steam 1 RUN: d43eea2d-9383-41cf-b738-34b99470225f